bitfinex/quotes_ETHUSD_20260126
["timestamp","ask_amount","ask_price","bid_price","bid_amount"]
[1769415340860,0.10150955,2901.1,2900.3,1.41745498]
[1769415341529,0.10150955,2901.1,2900.1,0.722]
[1769415341734,0.73132282,2901.0,2900.1,2.13945498]
[1769415341944,0.04296457,2900.9,2900.1,2.13945498]
[1769415342446,0.10150955,2900.9,2900.0,0.20986812]
[1769415342669,0.96331274,2900.9,2899.8,2.14045498]
[1769415343262,0.96331274,2900.9,2899.8,1.41845498]
[1769415343461,2.36688429,2900.9,2899.8,1.41845498]
[1769415343943,1.5050811,2900.9,2899.8,1.41845498]
[1769415344148,0.04296457,2900.9,2899.9,1.45193892]
[1769415344451,0.73132282,2901.0,2899.9,1.75564487]
[1769415344656,0.04296457,2900.9,2900.2,0.001]
[1769415344868,0.002,2900.7,2900.2,0.001]
[1769415345245,0.002,2900.7,2900.3,1.41745498]
[1769415345444,0.002,2900.9,2900.3,1.41745498]
[1769415346187,0.002,2900.9,2900.2,0.001]
[1769415346188,0.05854498,2900.4,2900.2,0.001]
[1769415346402,0.96346749,2900.4,2899.4,1.41745498]
[1769415346688,0.44112317,2900.3,2899.4,1.41745498]
[1769415346850,0.05854498,2900.2,2899.4,1.41745498]
[1769415347044,0.05854498,2900.2,2898.8,1.45195201]
[1769415347045,0.05854498,2899.8,2898.8,1.45195201]
[1769415347262,0.05854498,2899.8,2898.8,1.41745498]
[1769415347680,0.05854498,2900.0,2898.8,1.41745498]
[1769415347880,1.46211653,2900.2,2898.9,1.83980318]
[1769415348060,0.05854498,2900.0,2899.0,1.41745498]
[1769415349353,0.92057552,2900.2,2899.0,1.41745498]
[1769415349880,0.96354009,2900.2,2899.0,1.41745498]
[1769415350980,0.05854498,2899.8,2899.0,1.41745498]
[1769415351449,0.05854498,2900.0,2899.0,1.41745498]
[1769415351786,0.30111064,2900.0,2899.0,1.41745498]
[1769415352351,0.86209869,2899.9,2899.0,1.41745498]
[1769415352986,1.20616458,2900.0,2899.0,1.41745498]
[1769415353157,0.28553023,2900.0,2899.0,1.41745498]
[1769415353366,0.04296457,2900.0,2899.0,1.41745498]
[1769415353795,0.04296457,2900.2,2899.0,1.41745498]
[1769415354759,0.90498168,2900.2,2899.0,1.41745498]
[1769415357028,2.30855323,2900.2,2899.0,1.41745498]
[1769415357407,2.30855323,2900.2,2899.2,0.001]
[1769415357585,1.26061454,2900.1,2899.2,0.001]
[1769415357916,0.04296457,2900.0,2899.2,0.001]
[1769415360114,0.04296457,2900.0,2899.2,1.41845498]
[1769415360317,1.31915952,2900.1,2899.2,1.41845498]
[1769415360497,1.26061454,2900.1,2899.2,1.41845498]
[1769415360893,6.35,2900.3,2899.4,1.41745498]
[1769415361097,0.04296457,2900.2,2899.4,1.41745498]
[1769415361292,0.10150955,2900.5,2899.4,1.41745498]
[1769415361925,0.10150955,2900.5,2899.2,0.001]
[1769415361926,0.05854498,2899.9,2899.2,0.001]
[1769415362086,0.05854498,2899.5,2899.2,0.001]
[1769415363293,0.05854498,2899.7,2899.2,0.001]
[1769415363494,0.24257439,2899.7,2899.2,0.001]
[1769415363818,0.05854498,2899.9,2899.2,0.001]
[1769415363819,0.9636129,2899.9,2899.2,0.001]
[1769415363984,0.05854498,2899.7,2899.2,0.001]
[1769415364813,0.04296457,2899.6,2899.2,0.001]
[1769415365116,0.05854498,2899.5,2898.7,1.221575]
[1769415366814,1.47280007,2899.5,2898.7,1.221575]
[1769415367120,0.05854498,2899.3,2898.7,1.221575]
[1769415369025,0.05854498,2899.3,2899.2,0.001]
[1769415369191,0.05854498,2899.3,2898.7,1.221575]
[1769415369395,2.33507954,2899.3,2898.7,1.221575]
[1769415369622,0.05854498,2899.1,2898.7,1.221575]
[1769415369919,0.94147958,2899.1,2898.7,1.221575]
[1769415370218,0.8829346,2899.1,2898.7,1.221575]
[1769415371509,0.05854498,2899.0,2898.7,1.221575]
[1769415372192,0.8829346,2899.1,2898.7,1.221575]
[1769415372893,0.23779637,2899.4,2898.7,1.221575]
[1769415374208,0.05854498,2899.3,2898.7,1.221575]
[1769415374822,0.10150955,2899.3,2898.7,1.221575]
[1769415376718,0.05854498,2899.1,2898.7,1.221575]
[1769415378241,0.10150955,2899.3,2898.7,1.221575]
[1769415378544,0.2615828,2899.2,2898.7,1.221575]
[1769415378912,0.04296457,2899.1,2898.7,1.221575]
[1769415379111,0.10150955,2899.1,2898.7,1.221575]
[1769415380313,0.96384717,2899.1,2898.7,1.221575]
[1769415380516,0.96384717,2899.1,2898.9,0.001]
[1769415380735,0.96384717,2899.1,2898.7,1.221575]
[1769415380901,0.05854498,2898.9,2898.7,1.221575]
[1769415381441,0.05854498,2898.9,2898.2,2.16609922]
[1769415381742,2.34653344,2899.1,2898.2,2.16609922]
[1769415381925,0.26080979,2899.0,2898.2,2.16609922]
[1769415382313,0.05854498,2898.9,2898.2,0.722]
[1769415383242,0.10150955,2898.9,2898.2,0.722]
[1769415383607,0.05854498,2898.7,2898.0,0.723]
[1769415383806,0.04296457,2898.9,2898.1,1.44409922]
[1769415384133,0.04296457,2898.9,2898.1,1.66080914]
[1769415384302,0.05854498,2899.1,2898.1,1.66080914]
[1769415384503,0.05854498,2899.1,2898.1,1.44409922]
[1769415385339,0.92088226,2899.1,2898.1,1.44409922]
[1769415385545,0.04296457,2899.0,2898.2,1.44409922]
[1769415385746,0.04296457,2899.2,2898.2,1.44409922]
[1769415385932,0.04296457,2899.2,2898.2,1.7505248]
[1769415386254,0.002,2899.5,2898.3,1.44409922]
[1769415386552,0.002,2899.5,2898.3,1.4786022]
[1769415388225,0.002,2899.5,2898.4,0.86254485]
[1769415388430,0.002,2899.5,2898.5,1.44409922]
[1769415388740,0.002,2899.5,2898.7,1.44409922]
[1769415391742,2.24456742,2900.7,2899.0,1.44409922]
[1769415392046,0.05854498,2900.4,2899.2,1.44409922]
[1769415392814,0.05854498,2900.4,2899.3,1.44409922]
[1769415393116,0.92049513,2900.4,2899.3,1.74703897]
[1769415393435,0.002,2899.5,2899.3,1.74703897]
[1769415396431,0.05854498,2900.4,2899.3,1.74703897]
[1769415396661,0.05854498,2900.4,2899.3,1.44409922]
[1769415397158,0.04296457,2900.3,2899.3,1.44409922]
[1769415397356,0.05854498,2900.4,2899.3,1.44409922]
[1769415397554,0.05854498,2900.4,2899.5,1.51806746]
[1769415397755,0.002,2900.7,2899.5,1.51806746]
[1769415398055,0.002,2900.7,2899.7,1.51806746]
[1769415398056,0.78350381,2900.7,2899.7,1.51806746]
[1769415398359,0.05854498,2900.4,2899.7,1.51806746]
[1769415398558,0.10150955,2900.4,2899.6,0.722]
[1769415399357,0.10150955,2900.4,2899.5,1.51806746]
[1769415399556,0.10150955,2900.4,2899.5,2.24006746]
[1769415399859,0.3439536,2900.4,2899.5,2.24006746]
[1769415400063,0.24244405,2900.4,2899.6,1.51806746]
[1769415400251,0.04296457,2900.6,2899.6,1.51806746]
[1769415400436,0.10150955,2900.6,2899.6,1.51806746]
[1769415401558,0.05854498,2900.6,2899.6,1.51806746]
[1769415402251,0.78350381,2900.7,2899.7,1.51806746]
[1769415403059,0.04296457,2900.6,2899.8,0.722]
[1769415403227,0.04296457,2900.6,2899.8,1.51806746]
[1769415403228,0.10150955,2900.6,2899.8,1.51806746]
[1769415403435,0.23323281,2900.5,2899.7,0.722]
[1769415403634,0.04296457,2900.4,2899.7,0.722]
[1769415404465,0.05854498,2900.3,2899.7,0.722]
[1769415404648,0.04296457,2900.2,2899.7,0.722]
[1769415404850,1.67869045,2900.5,2899.6,1.51806746]
[1769415405144,0.24976268,2900.4,2899.6,1.51806746]
[1769415405336,0.25176268,2900.4,2899.6,1.51806746]
[1769415405641,0.31030766,2900.4,2899.6,1.51806746]
[1769415405834,0.04296457,2900.3,2899.6,1.51806746]
[1769415406035,0.87904566,2900.3,2899.6,1.51806746]
[1769415407969,0.83608109,2900.3,2899.6,1.51806746]
[1769415408141,0.002,2900.4,2899.7,1.51806746]
[1769415408935,0.002,2900.4,2899.9,1.51806746]
[1769415409564,0.002,2900.4,2899.9,0.722]
[1769415410669,0.002,2900.4,2899.3,0.03449108]
[1769415410670,1.40249307,2899.7,2898.2,1.51806746]
[1769415410866,0.05854498,2899.2,2898.3,1.51806746]
[1769415411170,0.05854498,2899.4,2898.3,1.51806746]
[1769415411364,0.05854498,2899.2,2898.3,1.51806746]
[1769415413874,0.05854498,2899.2,2898.4,0.00878947]
[1769415414446,0.05854498,2899.1,2898.3,1.51806746]
[1769415414877,0.05854498,2899.2,2898.3,1.5268619]
[1769415415249,0.23232765,2899.3,2898.3,1.51806746]
[1769415415652,0.05854498,2899.4,2898.5,1.51806746]
[1769415415871,0.92075152,2899.6,2898.5,1.51806746]
[1769415415872,0.92075152,2899.6,2898.6,0.00878352]
[1769415416049,0.90528239,2899.7,2898.7,1.51806746]
[1769415416254,0.0431079,2899.7,2898.8,1.51806746]
[1769415417665,0.05854498,2899.6,2898.7,2.24006746]
[1769415417871,0.30102861,2899.6,2898.8,1.51806746]
[1769415418071,0.05854498,2899.6,2898.8,1.51806746]
[1769415418474,0.90528602,2899.7,2898.8,1.51806746]
[1769415418675,0.0431079,2899.7,2898.8,1.51806746]
[1769415418997,0.05854498,2899.8,2898.8,1.51806746]
[1769415419690,0.86211773,2899.9,2898.8,1.51806746]
[1769415419858,0.54285638,2899.8,2898.8,1.51806746]
[1769415420054,0.05854498,2899.6,2898.8,1.51806746]
[1769415420759,0.44120498,2899.8,2899.0,1.51806746]
[1769415420960,0.05854498,2900.1,2899.2,1.51806746]
[1769415421162,0.04510047,2900.2,2899.2,1.51806746]
[1769415421556,0.002,2900.2,2899.2,1.51806746]
[1769415421791,0.04310196,2900.1,2899.2,1.51806746]
[1769415422575,0.9637024,2900.1,2899.2,1.51806746]
[1769415423278,0.04310196,2900.1,2899.2,1.51806746]
[1769415423478,0.04310344,2900.0,2899.2,1.51806746]
[1769415423788,0.10164694,2900.1,2899.2,1.51806746]
[1769415425270,0.96368846,2900.1,2899.2,1.51806746]
[1769415427692,0.05854498,2899.9,2899.2,1.51806746]
[1769415427871,0.04310642,2899.8,2899.2,1.51806746]
[1769415428070,0.05854498,2899.6,2898.9,2.23356877]
[1769415428782,0.05854498,2899.7,2898.9,2.23356877]
[1769415428983,0.05854498,2899.7,2898.9,1.51156877]
[1769415429184,0.05854498,2899.7,2898.9,2.23356877]
[1769415429185,0.30789899,2899.7,2898.9,2.23356877]
[1769415429692,0.04310939,2899.6,2898.9,2.23356877]
[1769415430198,0.30789899,2899.7,2899.1,0.001]
[1769415430700,0.05854498,2899.5,2899.1,0.001]
[1769415430866,0.04311236,2899.4,2899.1,0.001]
[1769415431893,0.05854498,2899.3,2898.5,1.51156877]
[1769415432313,0.05854498,2899.5,2898.5,1.51156877]
[1769415432522,0.10165734,2899.4,2898.5,2.23356877]
[1769415432887,0.10165734,2899.4,2898.5,1.51156877]
[1769415434502,0.04311236,2899.4,2898.5,1.51156877]
[1769415434701,0.05854498,2899.5,2898.5,1.51156877]
[1769415435026,0.96387787,2899.5,2898.5,1.51156877]
[1769415435718,0.58838625,2899.4,2898.5,1.51156877]
[1769415437396,0.04311385,2899.3,2898.5,1.51156877]
[1769415437723,0.04311385,2899.3,2897.9,3.45074332]
[1769415437724,0.05854498,2898.7,2897.9,1.49612213]
[1769415438702,0.05854498,2898.7,2897.7,2.21812213]
[1769415438998,0.05854498,2898.5,2897.7,1.49612213]
[1769415440229,1.16094724,2898.5,2897.7,1.49612213]
[1769415440748,0.05854498,2898.3,2897.4,1.49612213]
[1769415440935,0.05854498,2898.3,2897.4,2.21812213]
[1769415441300,0.05854498,2898.3,2897.4,1.49612213]
[1769415441622,0.32241932,2898.3,2897.4,1.49612213]
[1769415441817,1.74167049,2898.3,2897.1,0.73081748]
[1769415442019,0.86242583,2898.8,2897.5,1.49612213]
[1769415442318,0.05854498,2898.7,2897.5,1.49612213]
[1769415442904,0.05854498,2898.7,2897.9,0.001]
[1769415443230,0.05854498,2898.5,2897.9,0.001]
[1769415443834,0.86248533,2898.6,2897.9,0.001]
[1769415444001,0.9210107,2898.7,2897.9,0.001]
[1769415444401,0.44138358,2898.6,2897.9,0.001]
[1769415444605,0.48450784,2898.6,2897.9,0.001]
[1769415446043,0.44138358,2898.6,2897.9,0.001]
[1769415446214,0.04312426,2898.6,2897.9,0.001]
[1769415447729,0.90561014,2898.6,2897.9,0.001]
[1769415447929,0.05854498,2898.2,2897.4,1.49612213]
[1769415448120,1.47779615,2898.5,2897.5,0.00880412]
[1769415448438,0.05854498,2898.3,2897.5,1.50492625]
[1769415448833,0.05854498,2898.3,2897.5,1.49612213]
[1769415449246,0.23834063,2898.4,2897.5,1.49612213]
[1769415449413,0.23834063,2898.4,2897.6,0.00880259]
[1769415449613,0.86248588,2898.6,2897.6,1.50492472]
[1769415449910,0.04312575,2898.5,2897.6,1.49612213]
[1769415450117,0.05854498,2898.2,2897.3,2.22792502]
[1769415450341,0.05854498,2898.1,2897.3,2.21912213]
[1769415451038,0.05854498,2898.1,2897.3,2.44103434]
[1769415452045,0.05854498,2898.4,2897.4,1.49612213]
[1769415452210,0.92109432,2898.4,2897.6,1.49612213]
[1769415452410,0.04312873,2898.3,2897.6,1.49612213]
[1769415453038,0.05854498,2898.4,2897.6,1.49612213]
[1769415453249,0.05854498,2898.5,2897.6,1.49612213]
[1769415453543,0.05854498,2898.7,2897.6,1.49612213]
[1769415453739,0.04312426,2898.6,2897.6,1.49612213]
[1769415454133,0.05854498,2898.5,2897.6,1.49612213]
[1769415455240,0.05854498,2898.5,2897.6,2.21912213]
[1769415455549,0.05854498,2898.5,2897.7,0.22191221]
[1769415456253,0.05854498,2898.5,2897.8,0.001]
[1769415456443,0.96413897,2898.7,2897.9,1.42824655]
[1769415456626,0.04312277,2898.7,2897.9,1.42824655]
[1769415456829,0.05854498,2898.8,2897.9,1.42824655]
[1769415457021,0.24716346,2898.8,2897.9,1.43704823]
[1769415457736,0.30570844,2898.8,2897.9,1.43704823]
[1769415457942,0.30570844,2898.8,2897.9,1.42824655]
[1769415458145,0.30570844,2898.8,2898.0,0.00880075]
[1769415458334,1.21125739,2898.8,2897.9,1.42824655]
[1769415458746,0.30570844,2898.8,2897.9,1.42824655]
[1769415458927,1.16813501,2898.8,2897.9,1.42824655]
[1769415459255,0.30570844,2898.8,2897.9,1.42824655]
[1769415459640,1.16814129,2898.8,2897.9,1.42824655]
[1769415460651,0.30570844,2898.8,2897.9,1.42824655]
[1769415461264,0.30570844,2898.8,2897.9,1.68051772]
[1769415462270,0.05854498,2899.2,2897.9,1.68051772]
[1769415462271,6.40854498,2899.7,2898.0,1.43704689]
[1769415462430,0.05854498,2899.2,2898.0,1.43704689]
[1769415462758,0.04311385,2899.3,2898.1,1.42824655]
[1769415463358,0.05854498,2899.2,2898.1,1.42824655]
[1769415463538,0.04311385,2899.3,2898.1,1.42824655]
[1769415464258,0.05854498,2899.2,2898.1,1.42824655]
[1769415464465,0.05854498,2899.2,2898.3,1.42824655]
[1769415464764,0.04311385,2899.3,2898.3,1.42824655]
[1769415464964,0.05854498,2899.4,2898.3,1.42824655]
[1769415465265,0.04311385,2899.3,2898.3,1.42824655]
[1769415465569,0.05854498,2899.5,2898.4,1.42824655]
[1769415465731,0.05854498,2899.5,2898.6,1.42824655]
[1769415466433,0.05854498,2899.6,2898.6,1.42824655]
[1769415468640,0.002,2899.3,2898.6,1.42824655]
[1769415469270,0.002,2899.3,2898.7,1.42824655]
[1769415471175,0.002,2899.3,2898.7,2.2906922]
[1769415471347,0.002,2899.3,2898.8,1.72961577]
[1769415473671,0.002,2899.9,2898.9,1.43702649]
[1769415474885,6.43258177,2899.6,2898.9,1.42824655]
[1769415477666,6.43458177,2899.9,2898.9,1.42824655]
[1769415478556,0.05854498,2899.6,2898.9,1.42824655]
[1769415478881,6.49112675,2899.6,2898.9,0.89683957]
[1769415479749,6.49312675,2899.9,2899.0,1.42824655]
[1769415479954,6.43458177,2899.9,2899.0,1.43702023]
[1769415480882,0.002,2899.4,2899.0,1.43702023]
[1769415481065,0.002,2899.4,2899.1,1.66163253]
[1769415482984,0.002,2899.4,2898.9,0.723]
[1769415488335,6.43258177,2899.0,2898.4,1.42380106]
[1769415488789,6.43258177,2899.0,2898.3,0.722]
[1769415488965,1.54783887,2899.2,2897.8,0.86370649]
[1769415488966,6.43258177,2898.4,2897.8,0.001]
[1769415489164,1.48929389,2898.7,2897.8,0.001]
[1769415489165,0.86248533,2898.6,2897.8,1.42480106]
[1769415489355,1.07448682,2898.6,2897.8,0.001]
[1769415489884,0.05854498,2898.5,2897.8,0.001]
[1769415490095,6.43258177,2898.4,2897.8,0.001]
[1769415491889,6.43258177,2898.1,2897.5,1.42380106]
[1769415492096,6.43258177,2898.4,2897.5,1.42380106]
[1769415492319,0.87844103,2898.3,2897.5,1.42380106]
[1769415492513,0.87844103,2898.3,2897.4,0.722]
[1769415492807,0.87844103,2898.3,2897.5,1.42380106]
[1769415493106,6.43258177,2898.4,2897.5,1.42380106]
[1769415493602,6.43258177,2898.4,2897.7,0.001]
[1769415496013,7.92187566,2898.4,2897.7,0.001]
[1769415496190,6.43258177,2898.4,2897.7,0.001]
[1769415497208,1.48088669,2898.3,2897.7,0.001]
[1769415497388,0.87760163,2898.2,2897.7,0.001]
[1769415501284,6.43258177,2898.4,2897.7,0.001]
[1769415501285,6.43258177,2898.4,2897.7,1.45523066]
[1769415502018,1.48088669,2898.3,2897.7,0.001]
[1769415502207,6.43258177,2898.1,2897.7,0.001]
[1769415504412,6.43258177,2898.1,2897.2,1.45423066]
[1769415504815,6.43258177,2898.1,2897.2,1.46305379]
[1769415505714,0.92114118,2898.3,2897.2,1.46305379]
[1769415505715,0.002,2898.0,2897.3,1.45423066]
[1769415505915,0.002,2898.0,2897.5,1.45423066]
[1769415506816,1.07448682,2898.6,2897.5,1.45423066]
[1769415506817,2.34316379,2899.3,2897.8,1.45423066]
[1769415506981,6.43258177,2899.1,2898.0,1.45423066]
[1769415507193,0.002,2899.4,2898.2,1.45423066]
[1769415507194,6.43458177,2899.4,2898.2,1.45423066]
[1769415507389,6.43458177,2899.4,2898.1,0.723]
[1769415507390,7.27197513,2899.4,2898.4,1.45423066]
[1769415507691,8.09111167,2899.4,2898.4,1.45423066]
[1769415508702,7.22886277,2899.4,2898.4,1.45423066]
[1769415508926,8.09111144,2899.4,2898.4,1.45423066]
[1769415509423,7.17031779,2899.4,2898.4,1.45423066]
[1769415509629,8.03257311,2899.4,2898.4,1.45423066]
[1769415511126,7.17031779,2899.4,2898.4,1.45423066]
[1769415511725,0.73773602,2899.4,2898.4,1.45423066]
[1769415512025,0.86424871,2899.4,2898.4,1.45423066]
[1769415512397,0.05854498,2899.3,2898.4,1.45423066]
[1769415512612,1.52400054,2899.3,2898.4,1.45423066]
[1769415513032,0.10165883,2899.3,2898.4,1.45423066]
[1769415513800,0.96393628,2899.3,2898.4,1.45423066]
[1769415514202,0.05854498,2899.1,2898.3,0.94072307]
[1769415514943,2.97584777,2899.3,2898.3,2.23916867]
[1769415514944,2.97585007,2899.3,2898.3,2.23916867]
[1769415515131,1.55350836,2899.3,2898.4,1.51616867]
[1769415515939,1.51039451,2899.3,2898.4,1.51616867]
[1769415516308,1.55350836,2899.3,2898.4,1.51616867]
[1769415516942,3.01248371,2899.3,2898.4,1.51616867]
[1769415517244,0.64634883,2899.2,2898.4,1.51616867]
[1769415517423,2.42291393,2899.3,2898.4,1.51616867]
[1769415517622,0.002,2898.9,2898.4,1.51616867]
[1769415520249,0.002,2898.9,2898.6,1.51616867]
[1769415520857,0.002,2899.1,2898.4,0.00879245]
[1769415521022,0.002,2899.4,2898.8,1.51616867]
[1769415521216,0.002,2899.4,2898.8,1.52494757]
[1769415521841,0.002,2899.4,2898.8,1.76368878]
[1769415522043,0.002,2899.4,2898.8,1.75490988]
[1769415522263,0.002,2899.4,2898.8,1.76369211]
[1769415523577,0.002,2899.6,2899.0,1.51616867]
[1769415523768,0.002,2899.9,2899.1,1.52494133]
[1769415524563,0.002,2900.1,2899.1,1.52494133]
[1769415524564,0.002,2900.1,2899.2,1.51616867]
[1769415524981,0.002,2900.3,2899.0,1.51616867]
[1769415525136,0.002,2900.3,2899.2,1.51616867]
[1769415525464,0.002,2900.3,2899.3,0.8622771]
[1769415525777,0.002,2900.3,2899.5,1.51616867]
[1769415526942,0.002,2900.3,2899.7,1.51616867]
[1769415527538,0.002,2900.3,2899.8,1.51616867]
[1769415530277,0.002,2900.0,2899.8,1.51616867]
[1769415530887,0.002,2900.3,2899.8,1.51616867]
[1769415531175,0.002,2900.4,2899.9,1.51616867]
[1769415538082,0.002,2900.4,2899.9,1.5249162]
[1769415541980,0.002,2900.9,2900.1,1.51616867]
[1769415542187,0.002,2900.9,2900.3,1.51616867]
[1769415542490,0.002,2900.9,2900.5,1.51616867]
[1769415542692,0.002,2901.4,2900.6,1.82705386]
[1769415543415,6.43089779,2901.4,2900.6,1.51616867]
[1769415543990,0.002,2901.4,2900.6,1.51616867]
[1769415545185,1.45355959,2901.4,2900.4,1.44961167]
[1769415545372,6.48744277,2901.3,2900.5,0.73072659]
[1769415545575,0.79410024,2901.2,2900.5,0.722]
[1769415545774,0.79410024,2901.2,2900.5,2.16287633]
[1769415546389,0.85264522,2901.2,2900.2,1.44087633]
[1769415546576,6.42889779,2901.0,2900.3,0.722]
[1769415546784,6.47198638,2901.0,2900.3,0.722]
[1769415546986,0.64719864,2900.9,2900.3,0.722]
[1769415549466,6.42889779,2901.0,2900.3,0.722]
[1769415549878,6.42889779,2901.0,2900.3,2.16287633]
[1769415550865,8.74224141,2901.0,2900.3,0.722]
[1769415551076,6.42889779,2900.7,2900.3,0.722]
[1769415551397,6.42889779,2900.7,2900.1,0.722]
[1769415551699,0.78804574,2900.6,2900.1,0.722]
[1769415551995,6.42889779,2900.4,2900.0,0.001]
[1769415552213,0.78804574,2900.6,2900.0,0.001]
[1769415552782,2.23960533,2900.6,2900.0,0.001]
[1769415553202,2.23960533,2900.6,2900.2,0.001]
[1769415553500,0.95303853,2900.5,2900.0,0.001]
[1769415554510,6.42889779,2901.0,2900.0,1.44187633]
[1769415554717,1.65781496,2901.2,2900.0,1.45062089]
[1769415554894,0.002,2901.2,2900.0,1.45062089]
[1769415555085,0.86371463,2901.2,2900.0,1.45062089]
[1769415555599,0.002,2901.2,2900.0,1.45062089]
[1769415559001,0.002,2901.2,2900.0,2.31268611]
[1769415559325,0.002,2901.2,2900.1,1.81519493]
[1769415559514,0.002,2901.2,2900.3,1.51172632]
[1769415559822,0.002,2901.2,2900.5,1.51172632]
[1769415560005,0.002,2901.2,2900.7,1.51172632]
[1769415561821,0.002,2901.2,2901.0,0.002]
[1769415564413,0.002,2901.2,2901.0,1.51372632]
[1769415564819,0.002,2901.2,2901.0,0.002]
[1769415569641,0.002,2901.2,2900.8,1.51172632]
[1769415570016,0.002,2901.2,2900.8,1.73509895]
[1769415574765,0.002,2901.4,2900.9,1.45967124]
[1769415576459,0.002,2901.4,2901.1,1.45967124]
[1769415576668,0.002,2901.7,2901.2,1.46838548]
[1769415577027,0.0028,2902.4,2901.3,1.45967124]
[1769415577345,0.0028,2902.4,2901.4,0.722]
[1769415577346,1.4853236,2902.1,2901.4,0.722]
[1769415577957,0.002,2902.2,2901.4,2.18167124]
[1769415578152,0.002,2902.2,2901.5,1.45967124]
[1769415579048,0.002,2902.2,2901.4,0.94016712]
[1769415579247,0.002,2902.2,2901.4,2.39983836]
[1769415583160,0.002,2902.2,2901.5,1.45967124]
[1769415583959,0.002,2902.2,2901.7,1.45967124]
[1769415584201,0.002,2902.2,2901.7,1.69266788]
[1769415585041,0.002,2902.2,2901.8,0.00869376]
[1769415586237,0.002,2902.2,2901.7,1.69266788]
[1769415587439,0.002,2902.2,2901.7,1.70136254]
[1769415587940,0.002,2902.2,2901.7,1.69266788]
[1769415589155,0.002,2902.2,2901.8,0.722]
[1769415589914,0.002,2902.0,2901.8,0.722]
[1769415597968,0.002,2902.0,2901.6,1.45967124]
[1769415598168,0.002,2902.0,2901.6,0.722]
[1769415598573,0.002,2902.0,2901.5,0.722]
[1769415598776,0.002,2902.0,2901.5,2.18167124]
[1769415599663,0.002,2902.0,2901.6,1.45967124]
[1769415599966,0.002,2902.0,2901.6,1.4683696]
[1769415601964,0.002,2902.0,2901.8,0.001]
[1769415611507,0.002,2902.0,2901.8,1.4141561]
[1769415611799,0.002,2902.0,2901.9,0.00869479]
[1769415612494,0.002,2902.0,2901.9,1.42185089]
[1769415614025,0.002,2902.2,2901.9,1.42185089]
[1769415615085,0.002,2902.2,2902.0,0.722]
[1769415617224,0.002,2902.2,2901.8,0.723]
[1769415617392,0.0028,2902.4,2901.9,1.4131561]
[1769415617599,0.0028,2902.4,2902.0,1.51037155]
[1769415618798,0.0028,2902.4,2902.0,1.50168373]
[1769415620026,0.0028,2902.4,2902.1,0.722]
[1769415623905,0.0028,2902.4,2902.1,2.22368373]
[1769415624136,0.0028,2902.4,2902.2,0.22236837]
[1769415624430,0.002,2902.9,2902.4,1.50168373]
[1769415625294,1.44145394,2902.9,2902.2,0.001]
[1769415625551,0.002,2902.4,2902.2,0.001]
[1769415628203,0.002,2902.4,2902.2,1.51136605]
[1769415628533,0.002,2902.9,2902.3,1.50168373]
[1769415629307,0.002,2902.9,2902.3,1.51035863]
[1769415629506,0.002,2902.9,2902.3,1.50168373]
[1769415629921,0.002,2902.9,2902.5,1.50168373]
[1769415630601,0.002,2902.9,2902.2,0.001]
[1769415630801,0.002,2902.9,2902.2,1.50268373]
[1769415632015,1.44145394,2902.9,2902.2,0.001]
[1769415632528,0.002,2902.9,2902.2,0.001]
[1769415632905,0.002,2902.9,2902.3,1.50168373]
[1769415634616,0.002,2902.9,2902.4,1.50391777]
[1769415634800,0.002,2902.9,2902.6,1.50391777]
[1769415635004,0.002,2902.9,2902.7,1.51258749]
[1769415636226,0.002,2902.9,2902.7,1.50391777]
[1769415636633,0.002,2903.1,2902.7,1.50391777]
[1769415636634,0.002,2903.1,2902.8,1.50391777]
[1769415637439,0.002,2902.9,2902.8,1.50391777]
[1769415637822,0.002,2902.9,2902.8,1.72737639]
[1769415638342,0.17950328,2905.1,2903.3,1.50391777]
[1769415638540,1.4294919,2905.6,2903.0,0.05854498]
[1769415638541,1.4294919,2905.6,2904.4,1.50391777]
[1769415638717,1.4294919,2905.6,2904.6,1.50391777]
[1769415639105,0.05854498,2905.5,2904.6,1.50391777]
[1769415639305,1.4294919,2905.7,2904.6,1.50391777]
[1769415639749,0.05854498,2905.6,2904.6,1.50391777]
[1769415640040,0.05854498,2905.6,2904.5,0.722]
[1769415640041,0.05854498,2905.4,2904.5,0.722]
[1769415640544,0.05854498,2905.4,2904.5,2.22591777]
[1769415640748,2.34845627,2905.6,2904.5,2.22591777]
[1769415641051,0.23914752,2905.5,2904.6,1.50391777]
[1769415641748,0.05854498,2905.6,2904.6,1.50391777]
[1769415641913,4.72140043,2905.9,2904.6,1.50391777]
[1769415641914,2.08189998,2905.9,2904.6,1.50391777]
[1769415642113,1.221575,2905.9,2904.6,1.50391777]
[1769415642660,2.08190202,2905.9,2904.6,1.50391777]
[1769415642814,0.21834615,2905.8,2904.6,1.81258388]
[1769415643015,0.27689113,2905.8,2904.6,1.81258388]
[1769415644645,0.05854498,2905.4,2904.6,1.50391777]
[1769415644838,0.05854498,2905.4,2903.0,3.50322706]
[1769415644839,0.05854498,2904.9,2903.8,1.50391777]
[1769415645038,0.05854498,2904.9,2903.9,0.00804185]
[1769415645267,0.05854498,2904.9,2903.9,1.73525558]
[1769415645485,0.05854498,2904.9,2902.5,6.20222171]
[1769415645486,1.48803688,2904.7,2903.5,1.50391777]
[1769415645647,1.48803688,2904.5,2903.2,1.50391777]
[1769415645839,0.05854498,2904.3,2903.2,1.50391777]
[1769415646273,1.5310691,2904.8,2903.3,1.51255961]
[1769415646449,1.5310691,2904.8,2903.4,1.50391777]
[1769415646649,1.5310691,2904.8,2903.6,1.50391777]
[1769415646846,0.86059433,2905.0,2903.8,1.50391777]
[1769415647176,0.23486312,2904.9,2903.9,1.51253989]
[1769415648276,0.86051651,2905.3,2903.9,1.51253989]
[1769415648439,0.9620863,2905.3,2903.9,1.51253989]
[1769415649168,0.86049849,2905.3,2904.0,1.50391777]
[1769415649370,0.96197737,2905.6,2904.2,1.50391777]
[1769415649567,0.05854498,2905.4,2904.4,1.50391777]
[1769415652172,0.10156831,2905.4,2904.4,1.50391777]
[1769415653472,0.04302333,2905.4,2904.4,1.50391777]
[1769415653698,0.86242844,2905.6,2904.4,1.50391777]
[1769415654506,2.29192034,2905.6,2904.4,1.50391777]
[1769415654675,0.57334431,2905.5,2904.4,1.74125233]
[1769415654875,0.04302333,2905.4,2904.4,1.74125233]
[1769415655663,1.4294919,2905.3,2904.4,0.23733456]
[1769415655857,1.4294919,2905.3,2904.2,0.00860849]